[Event "Late-Titled-Tuesday-Blitz-May-14-2024"]
[Site "Chess.com"]
[Date "2024.05.14"]
[Round "5"]
[White "miraitrunks"]
[Black "cthake"]
[Result "0-1"]
[WhiteElo "2232"]
[BlackElo "1871"]
[TimeControl "180+1"]
[EndTime "14:54:54 PDT"]
[Termination "cthake won by resignation"]

1. e4 {[%clk 0:02:59.4]} 1... e6 {[%clk 0:02:59.5]} 2. Nc3 {[%clk 0:02:52.4]}
2... d5 {[%clk 0:02:58.4]} 3. Nf3 {[%clk 0:02:49.9]} 3... d4 {[%clk 0:02:56.7]}
4. Ne2 {[%clk 0:02:49.4]} 4... c5 {[%clk 0:02:56.4]} 5. Ng3 {[%clk 0:02:49.6]}
5... Nc6 {[%clk 0:02:54.9]} 6. Bb5 {[%clk 0:02:49.5]} 6... Bd7 {[%clk
0:02:50.1]} 7. O-O {[%clk 0:02:49.3]} 7... a6 {[%clk 0:02:48.5]} 8. Bxc6 {[%clk
0:02:49]} 8... Bxc6 {[%clk 0:02:47.5]} 9. Ne5 {[%clk 0:02:48.5]} 9... Bb5 {[%clk
0:02:33.2]} 10. d3 {[%clk 0:02:46.4]} 10... Nf6 {[%clk 0:02:32.6]} 11. a4 {[%clk
0:02:45.2]} 11... Bd7 {[%clk 0:02:29.4]} 12. f4 {[%clk 0:02:45.1]} 12... Be7
{[%clk 0:02:23.6]} 13. Nxd7 {[%clk 0:02:36.9]} 13... Qxd7 {[%clk 0:02:21.1]} 14.
e5 {[%clk 0:02:37.8]} 14... Nd5 {[%clk 0:02:20.3]} 15. Ne4 {[%clk 0:02:38.7]}
15... O-O {[%clk 0:02:16.5]} 16. Qg4 {[%clk 0:02:38]} 16... g6 {[%clk
0:02:08.3]} 17. h4 {[%clk 0:02:26.2]} 17... h5 {[%clk 0:02:05.8]} 18. Qh3 {[%clk
0:02:22.2]} 18... b5 {[%clk 0:02:02.7]} 19. axb5 {[%clk 0:02:21.5]} 19... axb5
{[%clk 0:02:02.9]} 20. Rxa8 {[%clk 0:02:21.2]} 20... Rxa8 {[%clk 0:02:02.4]} 21.
g4 {[%clk 0:02:20.8]} 21... hxg4 {[%clk 0:01:58.8]} 22. Qxg4 {[%clk 0:02:21.7]}
22... Kg7 {[%clk 0:01:52.7]} 23. h5 {[%clk 0:02:21.4]} 23... Rh8 {[%clk
0:01:51.5]} 24. hxg6 {[%clk 0:02:21.2]} 24... fxg6 {[%clk 0:01:51.6]} 25. Rf2
{[%clk 0:02:12.1]} 25... Rh4 {[%clk 0:01:51]} 26. Qg3 {[%clk 0:02:11]} 26... Qe8
{[%clk 0:01:33.4]} 27. f5 {[%clk 0:02:05.5]} 27... exf5 {[%clk 0:01:30]} 28. Nf6
{[%clk 0:02:02]} 28... Qh8 {[%clk 0:01:05]} 29. Bg5 {[%clk 0:01:55.2]} 29...
Rh1+ {[%clk 0:01:00]} 30. Kg2 {[%clk 0:01:55.4]} 30... Ne3+ {[%clk 0:00:56.9]}
31. Bxe3 {[%clk 0:01:48.1]} 31... dxe3 {[%clk 0:00:55.9]} 32. Ne8+ {[%clk
0:01:40.8]} 32... Kf7 {[%clk 0:00:52.3]} 33. Re2 {[%clk 0:01:33.5]} 33... Rh4
{[%clk 0:00:35.1]} 34. e6+ {[%clk 0:01:22.4]} 34... Kxe8 {[%clk 0:00:33.8]} 35.
Qb8+ {[%clk 0:01:21.9]} 35... Bd8 {[%clk 0:00:33.7]} 36. Rxe3 {[%clk 0:01:18.9]}
36... Rh2+ {[%clk 0:00:25.1]} 37. Qxh2 {[%clk 0:01:18]} 37... Qxh2+ {[%clk
0:00:22.6]} 38. Kxh2 {[%clk 0:01:18.9]} 38... Ke7 {[%clk 0:00:22.4]} 39. c4
{[%clk 0:01:16.8]} 39... bxc4 {[%clk 0:00:20.5]} 40. dxc4 {[%clk 0:01:17.7]}
40... g5 {[%clk 0:00:20]} 41. Re5 {[%clk 0:01:16.9]} 41... Bc7 {[%clk
0:00:20.1]} 42. Kg2 {[%clk 0:01:13.7]} 42... Bxe5 {[%clk 0:00:20.3]} 0-1

[Event "Late-Titled-Tuesday-Blitz-May-14-2024"]
[Site "Chess.com"]
[Date "2024.05.14"]
[Round "5"]
[White "Akhayan"]
[Black "KatakuriDono"]
[Result "1-0"]
[WhiteElo "2445"]
[BlackElo "2294"]
[TimeControl "180+1"]
[EndTime "14:54:56 PDT"]
[Termination "Akhayan won by resignation"]

1. e4 {[%clk 0:03:00.9]} 1... c5 {[%clk 0:02:59.4]} 2. Nf3 {[%clk 0:02:59.9]}
2... Nc6 {[%clk 0:02:59.6]} 3. Nc3 {[%clk 0:02:59.7]} 3... e6 {[%clk 0:02:57.9]}
4. d4 {[%clk 0:02:42.2]} 4... cxd4 {[%clk 0:02:57.9]} 5. Nxd4 {[%clk 0:02:42.9]}
5... Bb4 {[%clk 0:02:57.4]} 6. Bc4 {[%clk 0:02:38.5]} 6... Bxc3+ {[%clk
0:02:56.4]} 7. bxc3 {[%clk 0:02:38.3]} 7... Nf6 {[%clk 0:02:53.7]} 8. Nxc6
{[%clk 0:02:35.6]} 8... bxc6 {[%clk 0:02:53.6]} 9. O-O {[%clk 0:02:32.9]} 9...
Nxe4 {[%clk 0:02:47.1]} 10. Qg4 {[%clk 0:02:31.8]} 10... d5 {[%clk 0:02:43.2]}
11. Qxg7 {[%clk 0:02:27.8]} 11... Qf6 {[%clk 0:02:41.4]} 12. Qxf6 {[%clk
0:02:25.2]} 12... Nxf6 {[%clk 0:02:41.2]} 13. Be2 {[%clk 0:02:19.5]} 13... Ne4
{[%clk 0:02:35.9]} 14. f3 {[%clk 0:02:17]} 14... Nxc3 {[%clk 0:02:29.7]} 15. Bd3
{[%clk 0:02:17.6]} 15... Nb5 {[%clk 0:02:13.9]} 16. a4 {[%clk 0:02:14.8]} 16...
Nd6 {[%clk 0:02:11.9]} 17. Ba3 {[%clk 0:02:12.6]} 17... Kd7 {[%clk 0:02:03]} 18.
Rab1 {[%clk 0:02:11]} 18... Kc7 {[%clk 0:01:47.4]} 19. Bb2 {[%clk 0:02:04]}
19... Re8 {[%clk 0:01:41.5]} 20. Be5 {[%clk 0:02:04.1]} 20... Bd7 {[%clk
0:01:32.9]} 21. Bxh7 {[%clk 0:02:01.6]} 21... c5 {[%clk 0:01:29.1]} 22. c4
{[%clk 0:01:50.1]} 22... d4 {[%clk 0:01:27.1]} 23. Be4 {[%clk 0:01:46.6]} 23...
Rab8 {[%clk 0:01:26.5]} 24. a5 {[%clk 0:01:44]} 24... Bc6 {[%clk 0:01:23.7]} 25.
a6 {[%clk 0:01:36.7]} 25... f5 {[%clk 0:01:22.8]} 26. Bd3 {[%clk 0:01:29.6]}
26... Kd7 {[%clk 0:01:19.3]} 27. h4 {[%clk 0:01:23.1]} 27... Rxb1 {[%clk
0:01:14.4]} 28. Rxb1 {[%clk 0:01:21.5]} 28... Nf7 {[%clk 0:01:13.8]} 29. Bb8
{[%clk 0:01:11.6]} 29... Ke7 {[%clk 0:01:00.1]} 30. Bxa7 {[%clk 0:01:09.5]}
30... Kf6 {[%clk 0:00:58.5]} 31. Bxc5 {[%clk 0:01:09]} 31... e5 {[%clk
0:00:55.9]} 32. a7 {[%clk 0:01:08.2]} 32... Ba8 {[%clk 0:00:49.7]} 33. Bc2
{[%clk 0:00:52.7]} 33... e4 {[%clk 0:00:40.8]} 34. Bxd4+ {[%clk 0:00:51.9]}
34... Kg6 {[%clk 0:00:39.7]} 35. fxe4 {[%clk 0:00:50.1]} 35... fxe4 {[%clk
0:00:40]} 36. Rb8 {[%clk 0:00:45]} 36... Nd6 {[%clk 0:00:39.6]} 37. c5 {[%clk
0:00:36.4]} 1-0

[Event "Late-Titled-Tuesday-Blitz-May-14-2024"]
[Site "Chess.com"]
[Date "2024.05.14"]
[Round "5"]
[White "sergeikim"]
[Black "dianamirza"]
[Result "1-0"]
[WhiteElo "2607"]
[BlackElo "1961"]
[TimeControl "180+1"]
[EndTime "14:54:59 PDT"]
[Termination "sergeikim won by resignation"]

1. d4 {[%clk 0:03:00.9]} 1... Nf6 {[%clk 0:02:46]} 2. c4 {[%clk 0:03:00.4]} 2...
c5 {[%clk 0:02:46.1]} 3. d5 {[%clk 0:03:00.1]} 3... b5 {[%clk 0:02:46.7]} 4.
cxb5 {[%clk 0:03:00]} 4... a6 {[%clk 0:02:46.2]} 5. b6 {[%clk 0:03:00.6]} 5...
Qxb6 {[%clk 0:02:44.9]} 6. Nc3 {[%clk 0:03:00.5]} 6... g6 {[%clk 0:02:44.4]} 7.
e4 {[%clk 0:03:00.4]} 7... Bg7 {[%clk 0:02:44.7]} 8. Be2 {[%clk 0:03:00.3]} 8...
d6 {[%clk 0:02:45.2]} 9. Nf3 {[%clk 0:03:00]} 9... O-O {[%clk 0:02:45.5]} 10.
O-O {[%clk 0:02:59.2]} 10... Bg4 {[%clk 0:02:44.8]} 11. Nd2 {[%clk 0:02:58.9]}
11... Bxe2 {[%clk 0:02:44.2]} 12. Qxe2 {[%clk 0:02:59.1]} 12... Nbd7 {[%clk
0:02:43.8]} 13. Nc4 {[%clk 0:02:57.3]} 13... Qb4 {[%clk 0:02:39.9]} 14. Bg5
{[%clk 0:02:39.6]} 14... h6 {[%clk 0:02:35]} 15. Bh4 {[%clk 0:02:37.9]} 15...
Rfb8 {[%clk 0:02:13.9]} 16. Rab1 {[%clk 0:02:34.9]} 16... Nb6 {[%clk 0:01:54.4]}
17. Nxb6 {[%clk 0:02:18]} 17... Rxb6 {[%clk 0:01:52.3]} 18. Kh1 {[%clk
0:02:14.6]} 18... a5 {[%clk 0:01:43.1]} 19. f4 {[%clk 0:02:09.6]} 19... a4
{[%clk 0:01:39.1]} 20. a3 {[%clk 0:02:09.1]} 20... Qa5 {[%clk 0:01:31.5]} 21. e5
{[%clk 0:02:05.1]} 21... dxe5 {[%clk 0:01:23.3]} 22. fxe5 {[%clk 0:02:05.3]}
22... Nd7 {[%clk 0:01:17.8]} 23. e6 {[%clk 0:01:59.3]} 23... fxe6 {[%clk
0:00:48.7]} 24. dxe6 {[%clk 0:01:58.1]} 24... Nf6 {[%clk 0:00:47.6]} 25. Bxf6
{[%clk 0:01:56.4]} 25... Bxf6 {[%clk 0:00:46.7]} 26. Nd5 {[%clk 0:01:56.2]}
26... Rd6 {[%clk 0:00:29.9]} 27. Nxf6+ {[%clk 0:01:54.3]} 27... exf6 {[%clk
0:00:30]} 28. Qg4 {[%clk 0:01:38.7]} 28... Kg7 {[%clk 0:00:24.3]} 29. Rbe1
{[%clk 0:01:29.9]} 29... Re8 {[%clk 0:00:23.1]} 30. e7 {[%clk 0:01:29.6]} 30...
f5 {[%clk 0:00:16.5]} 31. Qg3 {[%clk 0:01:22.2]} 31... Qc7 {[%clk 0:00:15.7]}
32. Rxf5 {[%clk 0:01:19.6]} 32... Rxe7 {[%clk 0:00:14]} 33. Ref1 {[%clk
0:01:19.3]} 33... Qd7 {[%clk 0:00:10.1]} 34. Qc3+ {[%clk 0:01:12.2]} 34... Kg8
{[%clk 0:00:09.2]} 35. Rxc5 {[%clk 0:01:09.9]} 35... Rd1 {[%clk 0:00:07]} 36.
Rc8+ {[%clk 0:01:09.2]} 36... Re8 {[%clk 0:00:06.4]} 37. Rxe8+ {[%clk
0:01:07.9]} 37... Qxe8 {[%clk 0:00:06.5]} 38. Rxd1 {[%clk 0:01:06.5]} 38... Kf7
{[%clk 0:00:05.8]} 39. Qf3+ {[%clk 0:01:05.3]} 1-0

[Event "Late-Titled-Tuesday-Blitz-May-14-2024"]
[Site "Chess.com"]
[Date "2024.05.14"]
[Round "5"]
[White "lucasmito"]
[Black "KuzubovYuriy"]
[Result "0-1"]
[WhiteElo "2733"]
[BlackElo "2939"]
[TimeControl "180+1"]
[EndTime "14:55:02 PDT"]
[Termination "KuzubovYuriy won by resignation"]

1. e4 {[%clk 0:03:00.9]} 1... e5 {[%clk 0:03:00]} 2. Nf3 {[%clk 0:03:00.2]} 2...
Nf6 {[%clk 0:03:00.6]} 3. Nxe5 {[%clk 0:02:58.7]} 3... d6 {[%clk 0:03:00.2]} 4.
Nf3 {[%clk 0:02:59.3]} 4... Nxe4 {[%clk 0:03:00.5]} 5. c4 {[%clk 0:03:00]} 5...
Nc6 {[%clk 0:02:59.2]} 6. Nc3 {[%clk 0:02:59]} 6... Nxc3 {[%clk 0:02:59.4]} 7.
dxc3 {[%clk 0:02:59.9]} 7... g6 {[%clk 0:02:59.1]} 8. Bg5 {[%clk 0:02:58.8]}
8... Be7 {[%clk 0:02:59.4]} 9. Bh6 {[%clk 0:02:58.7]} 9... Bf8 {[%clk 0:03:00]}
10. Bg5 {[%clk 0:02:55.6]} 10... Be7 {[%clk 0:02:59.9]} 11. Bh6 {[%clk
0:02:55.8]} 11... Bf8 {[%clk 0:03:00.1]} 12. Bxf8 {[%clk 0:02:55.9]} 12... Kxf8
{[%clk 0:03:00.5]} 13. Qd2 {[%clk 0:02:53.4]} 13... Kg7 {[%clk 0:02:54.3]} 14.
O-O-O {[%clk 0:02:53.1]} 14... Re8 {[%clk 0:02:52]} 15. h4 {[%clk 0:02:45.5]}
15... Bg4 {[%clk 0:02:45.4]} 16. Qf4 {[%clk 0:02:36.1]} 16... h5 {[%clk
0:02:29.8]} 17. c5 {[%clk 0:02:36.3]} 17... Re6 {[%clk 0:02:18.5]} 18. cxd6
{[%clk 0:02:24.6]} 18... Rxd6 {[%clk 0:02:09.1]} 19. Rxd6 {[%clk 0:02:08.4]}
19... Qxd6 {[%clk 0:02:10]} 20. Qxd6 {[%clk 0:02:08.6]} 20... cxd6 {[%clk
0:02:10.8]} 21. Ng5 {[%clk 0:02:06.5]} 21... Re8 {[%clk 0:02:03.4]} 22. f3
{[%clk 0:01:57.3]} 22... Bf5 {[%clk 0:01:58.2]} 23. Kd2 {[%clk 0:01:41.3]} 23...
d5 {[%clk 0:01:44.1]} 24. Bb5 {[%clk 0:01:32]} 24... a6 {[%clk 0:01:39.4]} 25.
Ba4 {[%clk 0:01:25.1]} 25... b5 {[%clk 0:01:30.2]} 26. Bb3 {[%clk 0:01:24.5]}
26... f6 {[%clk 0:01:30.3]} 27. Nh3 {[%clk 0:01:23.8]} 27... Bxh3 {[%clk
0:01:27.8]} 28. Rxh3 {[%clk 0:01:22.7]} 28... d4 {[%clk 0:01:27.7]} 29. Rh1
{[%clk 0:01:16.7]} 29... dxc3+ {[%clk 0:01:26.3]} 30. bxc3 {[%clk 0:01:16.8]}
30... Na5 {[%clk 0:01:20.5]} 31. Rd1 {[%clk 0:00:48.1]} 31... Nxb3+ {[%clk
0:00:51.3]} 32. axb3 {[%clk 0:00:49]} 32... Rd8+ {[%clk 0:00:51.5]} 33. Kc2
{[%clk 0:00:48.6]} 33... Rxd1 {[%clk 0:00:51.1]} 34. Kxd1 {[%clk 0:00:49.5]}
34... Kf7 {[%clk 0:00:50.7]} 35. b4 {[%clk 0:00:44]} 35... Ke6 {[%clk 0:00:50]}
36. Kc2 {[%clk 0:00:44.2]} 36... Ke5 {[%clk 0:00:46.4]} 37. g3 {[%clk 0:00:36]}
37... g5 {[%clk 0:00:43.8]} 38. hxg5 {[%clk 0:00:35.3]} 38... fxg5 {[%clk
0:00:44]} 39. Kd3 {[%clk 0:00:35.8]} 39... h4 {[%clk 0:00:43.3]} 40. f4+ {[%clk
0:00:36.3]} 40... Kf5 {[%clk 0:00:41.6]} 41. fxg5 {[%clk 0:00:33.2]} 41... h3
{[%clk 0:00:40.1]} 0-1

[Event "Late-Titled-Tuesday-Blitz-May-14-2024"]
[Site "Chess.com"]
[Date "2024.05.14"]
[Round "5"]
[White "Boninknights"]
[Black "protectiago"]
[Result "1-0"]
[WhiteElo "2384"]
[BlackElo "2076"]
[TimeControl "180+1"]
[EndTime "14:55:04 PDT"]
[Termination "Boninknights won on time"]

1. d4 {[%clk 0:02:59.6]} 1... d5 {[%clk 0:02:55.8]} 2. Nf3 {[%clk 0:02:59.3]}
2... e6 {[%clk 0:02:50.5]} 3. c4 {[%clk 0:02:58.3]} 3... Be7 {[%clk 0:02:46.6]}
4. Nc3 {[%clk 0:02:56]} 4... a6 {[%clk 0:02:25.2]} 5. cxd5 {[%clk 0:02:50.4]}
5... exd5 {[%clk 0:02:22.7]} 6. Qb3 {[%clk 0:02:41.9]} 6... c6 {[%clk
0:02:16.1]} 7. Bf4 {[%clk 0:02:39.7]} 7... Nf6 {[%clk 0:02:09.2]} 8. e3 {[%clk
0:02:36]} 8... O-O {[%clk 0:02:08.5]} 9. Bxb8 {[%clk 0:02:33.8]} 9... Rxb8
{[%clk 0:02:05.4]} 10. Bxa6 {[%clk 0:02:32.6]} 10... Ne4 {[%clk 0:00:53]} 11.
Bd3 {[%clk 0:02:21.3]} 11... Qa5 {[%clk 0:00:33.9]} 12. O-O {[%clk 0:02:17.7]}
12... f5 {[%clk 0:00:33.5]} 13. Nxe4 {[%clk 0:02:04.8]} 13... fxe4 {[%clk
0:00:33.1]} 14. Bxe4 {[%clk 0:02:04.1]} 14... Kh8 {[%clk 0:00:26.3]} 15. Bc2
{[%clk 0:01:48.2]} 15... Bd6 {[%clk 0:00:20.1]} 16. Ne5 {[%clk 0:01:42.4]} 16...
Qc7 {[%clk 0:00:16.9]} 17. f4 {[%clk 0:01:40.6]} 17... Be6 {[%clk 0:00:12.8]}
18. Rf3 {[%clk 0:01:32]} 18... g6 {[%clk 0:00:12.3]} 19. Raf1 {[%clk 0:01:20.9]}
19... Qg7 {[%clk 0:00:10.1]} 20. h4 {[%clk 0:01:14.4]} 20... c5 {[%clk
0:00:09.7]} 21. Rg3 {[%clk 0:01:10.3]} 21... c4 {[%clk 0:00:08.9]} 22. Qc3
{[%clk 0:01:04.6]} 22... b5 {[%clk 0:00:07.3]} 23. h5 {[%clk 0:01:02.6]} 23...
b4 {[%clk 0:00:07.1]} 24. Qe1 {[%clk 0:01:02.1]} 24... b3 {[%clk 0:00:07.3]} 25.
axb3 {[%clk 0:00:59.4]} 25... cxb3 {[%clk 0:00:07.3]} 26. Bd3 {[%clk 0:00:59]}
26... Bb4 {[%clk 0:00:05.7]} 27. Qe2 {[%clk 0:00:56.5]} 27... Bf7 {[%clk
0:00:03]} 28. hxg6 {[%clk 0:00:53.5]} 28... Bg8 {[%clk 0:00:00.2]} 29. Rh3
{[%clk 0:00:47.9]} 29... h6 {[%clk 0:00:00.2]} 30. Qh5 {[%clk 0:00:46.4]} 1-0

[Event "Late-Titled-Tuesday-Blitz-May-14-2024"]
[Site "Chess.com"]
[Date "2024.05.14"]
[Round "5"]
[White "egnfanclub"]
[Black "Oneofmyturns"]
[Result "0-1"]
[WhiteElo "2382"]
[BlackElo "2804"]
[TimeControl "180+1"]
[EndTime "14:55:06 PDT"]
[Termination "Oneofmyturns won by resignation"]

1. e4 {[%clk 0:03:00]} 1... e5 {[%clk 0:02:59.2]} 2. Nf3 {[%clk 0:02:59.4]} 2...
Nc6 {[%clk 0:02:59.3]} 3. Nc3 {[%clk 0:02:59.6]} 3... Nf6 {[%clk 0:02:57.8]} 4.
d4 {[%clk 0:02:59.8]} 4... exd4 {[%clk 0:02:57.7]} 5. Nd5 {[%clk 0:03:00.2]}
5... Be7 {[%clk 0:02:52.2]} 6. Bd3 {[%clk 0:02:49.8]} 6... O-O {[%clk
0:02:49.7]} 7. O-O {[%clk 0:02:44.7]} 7... d6 {[%clk 0:02:49.8]} 8. Nxe7+ {[%clk
0:02:43.9]} 8... Qxe7 {[%clk 0:02:50.1]} 9. Bg5 {[%clk 0:02:42.7]} 9... Bg4
{[%clk 0:02:38.2]} 10. h3 {[%clk 0:02:40.3]} 10... Bxf3 {[%clk 0:02:36.3]} 11.
Qxf3 {[%clk 0:02:39.7]} 11... Ne5 {[%clk 0:02:35.4]} 12. Qe2 {[%clk 0:02:37.9]}
12... h6 {[%clk 0:02:30.8]} 13. Bd2 {[%clk 0:02:23.9]} 13... Rfe8 {[%clk
0:02:28.7]} 14. f4 {[%clk 0:02:20.9]} 14... Ned7 {[%clk 0:02:21.2]} 15. Rae1
{[%clk 0:02:18.7]} 15... Nc5 {[%clk 0:02:20.1]} 16. e5 {[%clk 0:01:53.2]} 16...
Nfd7 {[%clk 0:02:18.8]} 17. exd6 {[%clk 0:01:44.6]} 17... Qxe2 {[%clk
0:02:15.3]} 18. Bxe2 {[%clk 0:01:34.9]} 18... cxd6 {[%clk 0:02:14.5]} 19. Bf3
{[%clk 0:01:28.9]} 19... Nf6 {[%clk 0:02:03.8]} 20. Rxe8+ {[%clk 0:01:11.2]}
20... Rxe8 {[%clk 0:02:04.7]} 21. Re1 {[%clk 0:01:11.5]} 21... Rc8 {[%clk
0:02:02.2]} 22. Re7 {[%clk 0:01:07]} 22... Na4 {[%clk 0:01:52]} 23. Rxb7 {[%clk
0:01:01.4]} 23... Rxc2 {[%clk 0:01:51.8]} 24. Bb4 {[%clk 0:00:40.6]} 24... d3
{[%clk 0:01:44.3]} 25. Kh2 {[%clk 0:00:33.6]} 25... Nxb2 {[%clk 0:01:37.3]} 26.
Bxd6 {[%clk 0:00:26]} 26... d2 {[%clk 0:01:33.2]} 27. Be5 {[%clk 0:00:23.2]}
27... d1=Q {[%clk 0:01:32.3]} 28. Bxd1 {[%clk 0:00:15.6]} 28... Nxd1 {[%clk
0:01:33.2]} 29. Rxa7 {[%clk 0:00:15.8]} 29... Ne3 {[%clk 0:01:32.1]} 30. Ra8+
{[%clk 0:00:14.2]} 30... Kh7 {[%clk 0:01:31]} 31. Kg3 {[%clk 0:00:14.4]} 31...
Nxg2 {[%clk 0:01:24.3]} 32. Bxf6 {[%clk 0:00:13.8]} 32... gxf6 {[%clk 0:01:24]}
33. a4 {[%clk 0:00:14.7]} 33... Ne3 {[%clk 0:01:23.3]} 34. Kf3 {[%clk
0:00:14.3]} 34... Nf5 {[%clk 0:01:22.3]} 35. a5 {[%clk 0:00:13.8]} 35... Ra2
{[%clk 0:01:21.6]} 36. a6 {[%clk 0:00:12.7]} 36... Kg7 {[%clk 0:01:21.6]} 37.
Ke4 {[%clk 0:00:12.9]} 37... Ra5 {[%clk 0:01:19.3]} 38. a7 {[%clk 0:00:11.8]}
38... Nd6+ {[%clk 0:01:18.7]} 39. Kf3 {[%clk 0:00:10.6]} 39... Nb5 {[%clk
0:01:18.5]} 40. Rb8 {[%clk 0:00:09.3]} 40... Nxa7 {[%clk 0:01:19.1]} 41. Ra8
{[%clk 0:00:09.5]} 41... Nc6 {[%clk 0:01:19.3]} 42. Rc8 {[%clk 0:00:08.6]} 42...
Nd4+ {[%clk 0:01:18.5]} 43. Ke4 {[%clk 0:00:07.8]} 43... Ne6 {[%clk 0:01:17.2]}
44. f5 {[%clk 0:00:06.2]} 44... Re5+ {[%clk 0:01:17.1]} 0-1

[Event "Late-Titled-Tuesday-Blitz-May-14-2024"]
[Site "Chess.com"]
[Date "2024.05.14"]
[Round "5"]
[White "Felix-Rose"]
[Black "jup1978"]
[Result "1-0"]
[WhiteElo "2301"]
[BlackElo "2474"]
[TimeControl "180+1"]
[EndTime "14:55:09 PDT"]
[Termination "Felix-Rose won by resignation"]

1. e4 {[%clk 0:03:00.9]} 1... c6 {[%clk 0:02:59.8]} 2. d4 {[%clk 0:03:00.3]}
2... d5 {[%clk 0:03:00.7]} 3. e5 {[%clk 0:03:00.7]} 3... c5 {[%clk 0:03:00.8]}
4. dxc5 {[%clk 0:03:00.4]} 4... e6 {[%clk 0:03:01.3]} 5. a3 {[%clk 0:03:00.6]}
5... Bxc5 {[%clk 0:02:48.3]} 6. Nf3 {[%clk 0:03:00.7]} 6... Nc6 {[%clk
0:02:46.8]} 7. b4 {[%clk 0:03:00.2]} 7... Bb6 {[%clk 0:02:45.9]} 8. Bb2 {[%clk
0:02:59.1]} 8... Nge7 {[%clk 0:02:45.8]} 9. Bd3 {[%clk 0:02:59.2]} 9... Ng6
{[%clk 0:02:45.2]} 10. O-O {[%clk 0:02:59.4]} 10... O-O {[%clk 0:02:43.7]} 11.
Re1 {[%clk 0:02:57.8]} 11... f6 {[%clk 0:02:41.2]} 12. exf6 {[%clk 0:02:49.3]}
12... gxf6 {[%clk 0:02:42.1]} 13. c4 {[%clk 0:02:49]} 13... dxc4 {[%clk
0:02:29.5]} 14. Bxc4 {[%clk 0:02:49.3]} 14... Qxd1 {[%clk 0:02:30]} 15. Rxd1
{[%clk 0:02:50.2]} 15... Kg7 {[%clk 0:02:27.8]} 16. Nbd2 {[%clk 0:02:41.9]}
16... Nce5 {[%clk 0:02:17.8]} 17. Nxe5 {[%clk 0:02:40.7]} 17... Nxe5 {[%clk
0:02:18.7]} 18. Bb3 {[%clk 0:02:24.8]} 18... Nd3 {[%clk 0:01:58.8]} 19. Nc4
{[%clk 0:02:21]} 19... Bxf2+ {[%clk 0:01:53]} 20. Kf1 {[%clk 0:02:20.7]} 20...
Nxb2 {[%clk 0:01:52.3]} 21. Nxb2 {[%clk 0:02:19]} 21... Bb6 {[%clk 0:01:43.8]}
22. Nc4 {[%clk 0:02:18]} 22... Bc7 {[%clk 0:01:44.3]} 23. Rac1 {[%clk
0:02:17.1]} 23... Bxh2 {[%clk 0:01:42.8]} 24. Kf2 {[%clk 0:02:10.1]} 24... Bf4
{[%clk 0:01:40.9]} 25. Rc3 {[%clk 0:02:09.8]} 25... b6 {[%clk 0:01:02.5]} 26.
Nd6 {[%clk 0:02:05.6]} 26... Rd8 {[%clk 0:00:54.4]} 27. Nf5+ {[%clk 0:01:58.3]}
27... exf5 {[%clk 0:00:54.7]} 28. Rxd8 {[%clk 0:01:58.5]} 28... Bb7 {[%clk
0:00:53.7]} 29. Rxa8 {[%clk 0:01:58.6]} 29... Bxa8 {[%clk 0:00:54.6]} 30. Rc8
{[%clk 0:01:57.1]} 30... Be4 {[%clk 0:00:53.5]} 31. Rg8+ {[%clk 0:01:56.6]}
31... Kh6 {[%clk 0:00:53]} 32. g3 {[%clk 0:01:55.2]} 32... Be5 {[%clk
0:00:52.3]} 33. Ke3 {[%clk 0:01:43.2]} 33... Bb2 {[%clk 0:00:49.6]} 34. a4
{[%clk 0:01:42.4]} 34... Ba3 {[%clk 0:00:46.8]} 35. b5 {[%clk 0:01:40.3]} 35...
Bc5+ {[%clk 0:00:47.7]} 36. Ke2 {[%clk 0:01:39.6]} 36... Kh5 {[%clk 0:00:42.6]}
37. Bf7+ {[%clk 0:01:35.8]} 37... Kh6 {[%clk 0:00:42.3]} 38. Be6 {[%clk
0:01:32]} 38... Bc2 {[%clk 0:00:40.2]} 39. Ra8 {[%clk 0:01:20.7]} 39... Bxa4
{[%clk 0:00:39.3]} 40. Rxa7 {[%clk 0:01:21.4]} 40... Bxb5+ {[%clk 0:00:39]} 41.
Kf3 {[%clk 0:01:18]} 41... Bc6+ {[%clk 0:00:39.5]} 42. Kf4 {[%clk 0:01:17.6]}
42... Bd6+ {[%clk 0:00:33.4]} 43. Kxf5 {[%clk 0:01:16]} 43... Bxg3 {[%clk
0:00:33]} 44. Kxf6 {[%clk 0:01:13.6]} 44... Bh4+ {[%clk 0:00:30.1]} 45. Kf5
{[%clk 0:01:12.1]} 45... Bf2 {[%clk 0:00:27.6]} 46. Bg8 {[%clk 0:01:11.7]} 1-0

[Event "Late-Titled-Tuesday-Blitz-May-14-2024"]
[Site "Chess.com"]
[Date "2024.05.14"]
[Round "5"]
[White "TheBigBadChessDad"]
[Black "gabduschew"]
[Result "0-1"]
[WhiteElo "2277"]
[BlackElo "2379"]
[TimeControl "180+1"]
[EndTime "14:55:10 PDT"]
[Termination "gabduschew won by resignation"]

1. d4 {[%clk 0:03:00.9]} 1... Nf6 {[%clk 0:02:50.2]} 2. Nf3 {[%clk 0:03:00.9]}
2... d5 {[%clk 0:02:49.5]} 3. Bf4 {[%clk 0:03:00.5]} 3... c5 {[%clk 0:02:43.4]}
4. e3 {[%clk 0:03:00.4]} 4... Nc6 {[%clk 0:02:43.5]} 5. c3 {[%clk 0:02:55.5]}
5... Qb6 {[%clk 0:02:41.5]} 6. Qb3 {[%clk 0:02:54.8]} 6... c4 {[%clk 0:02:41.5]}
7. Qc2 {[%clk 0:02:53.2]} 7... Bf5 {[%clk 0:02:40.7]} 8. Qc1 {[%clk 0:02:53.1]}
8... e6 {[%clk 0:02:40.4]} 9. Nbd2 {[%clk 0:02:52.9]} 9... h6 {[%clk 0:02:40]}
10. b3 {[%clk 0:02:51.9]} 10... cxb3 {[%clk 0:02:30.5]} 11. axb3 {[%clk
0:02:52.8]} 11... Be7 {[%clk 0:02:29.3]} 12. Qb2 {[%clk 0:02:18]} 12... O-O
{[%clk 0:02:26.9]} 13. Ne5 {[%clk 0:02:15.7]} 13... Rac8 {[%clk 0:02:16.8]} 14.
Be2 {[%clk 0:02:14.3]} 14... Nxe5 {[%clk 0:02:08]} 15. Bxe5 {[%clk 0:02:11.7]}
15... Bd6 {[%clk 0:01:46.9]} 16. Bxd6 {[%clk 0:02:06.4]} 16... Qxd6 {[%clk
0:01:46]} 17. Rxa7 {[%clk 0:02:05.9]} 17... Qc6 {[%clk 0:01:43.1]} 18. O-O
{[%clk 0:01:58.3]} 18... Qxc3 {[%clk 0:01:41.4]} 19. Qxc3 {[%clk 0:01:58]} 19...
Rxc3 {[%clk 0:01:41]} 20. Rxb7 {[%clk 0:01:57]} 20... Rc2 {[%clk 0:01:35.2]} 21.
Rd1 {[%clk 0:01:56.9]} 21... Ra8 {[%clk 0:01:24.8]} 22. g4 {[%clk 0:01:17]}
22... Bxg4 {[%clk 0:01:16.4]} 23. f3 {[%clk 0:01:08.3]} 23... Bf5 {[%clk
0:01:15.4]} 24. Kf2 {[%clk 0:01:08.5]} 24... Raa2 {[%clk 0:01:14.8]} 25. Ke1
{[%clk 0:01:08.8]} 25... Rc3 {[%clk 0:00:47.6]} 26. Kf2 {[%clk 0:01:03.7]} 26...
g5 {[%clk 0:00:45]} 27. Rb6 {[%clk 0:00:33.4]} 27... g4 {[%clk 0:00:44.4]} 28.
Ra6 {[%clk 0:00:32.5]} 28... Rb2 {[%clk 0:00:38.3]} 29. fxg4 {[%clk 0:00:27]}
29... Nxg4+ {[%clk 0:00:33.6]} 30. Bxg4 {[%clk 0:00:25.5]} 30... Bxg4 {[%clk
0:00:34.5]} 31. Rg1 {[%clk 0:00:25.2]} 31... Rxd2+ {[%clk 0:00:34.2]} 32. Ke1
{[%clk 0:00:21.9]} 32... Re2+ {[%clk 0:00:34.2]} 33. Kd1 {[%clk 0:00:20.8]}
33... Rg2+ {[%clk 0:00:34.5]} 0-1